bitfinex-derivatives/quotes_ETHF0:USTF0_20250321
["timestamp","ask_amount","ask_price","bid_price","bid_amount"]
[1742571954165,1.02571,1950.8,1950.7,43.17963]
[1742571955364,1.02571,1950.8,1950.7,42.1539]
[1742571955560,1.02571,1950.8,1950.7,43.4624]
[1742571956060,7.29903,1950.9,1950.5,1.02584]
[1742571956264,1.02581,1950.6,1950.5,1.3085]
[1742571956566,1.02581,1950.6,1950.5,42.1085]
[1742571956863,1.02587,1950.5,1950.4,1.73221]
[1742571957065,1.02587,1950.5,1950.4,2.0628]
[1742571957265,2.42687,1950.5,1950.4,42.1565]
[1742571957865,1.401,1950.5,1950.4,46.39022]
[1742571958170,2.42687,1950.5,1950.4,46.39022]
[1742571959257,1.401,1950.5,1950.4,46.39022]
[1742571959457,2.42687,1950.5,1950.4,46.39022]
[1742571959861,2.42687,1950.5,1950.4,42.1565]
[1742571960061,2.42687,1950.5,1950.4,40.8]
[1742571960263,1.02592,1950.4,1950.3,1.3502]
[1742571960555,1.4158,1950.4,1950.2,1.026]
[1742571960761,1.02599,1950.3,1950.2,1.3502]
[1742571961166,2.44179,1950.3,1950.2,2.37622]
[1742571961357,2.44179,1950.3,1950.2,1.3502]
[1742571961555,3.13229,1950.3,1950.2,1.3502]
[1742571961969,3.13229,1950.3,1950.2,2.37622]
[1742571962163,1.4158,1950.3,1950.2,2.37622]
[1742571962467,0.00767794,1950.6,1950.5,1.02587]
[1742571962869,0.00767794,1950.6,1950.5,2.43157]
[1742571963464,1.03348794,1950.6,1950.5,2.43157]
[1742571963664,2.32268794,1950.6,1950.5,1.4057]
[1742571964961,1.29687794,1950.6,1950.5,2.43157]
[1742571965660,0.00767794,1950.6,1950.5,2.43157]
[1742571968168,5.78201,1951.2,1950.8,2.56423]
[1742571968364,2.39596,1951.1,1951.0,1.0256]
[1742571968563,1.3704,1951.1,1951.0,1.0256]
[1742571968770,2.39595,1951.1,1951.0,1.0256]
[1742571969473,1.03319794,1951.2,1951.1,1.02555]
[1742571969867,2.35919794,1951.2,1951.1,1.02555]
[1742571970277,1.33367794,1951.2,1951.1,1.02555]
[1742571970567,2.35917794,1951.2,1951.1,1.02555]
[1742571970870,1.0256,1951.0,1950.9,0.00767794]
[1742571971469,2.3516,1951.0,1950.9,0.00767794]
[1742571972364,1.02576,1950.7,1950.6,1.71201]
[1742571972769,1.02576,1950.7,1950.6,0.6862]
[1742571972975,2.31976,1950.7,1950.6,0.6862]
[1742571973276,1.294,1950.7,1950.6,1.71201]
[1742571973471,1.02576,1950.7,1950.6,1.71198]
[1742571973666,1.294,1950.7,1950.4,0.6744]
[1742571973873,1.02587,1950.5,1950.4,1.70029]
[1742571974262,2.31987,1950.5,1950.4,0.6744]
[1742571974467,2.31987,1950.5,1950.4,1.70032]
[1742571974669,1.02579,1950.7,1950.4,0.6744]
[1742571974869,1.02581,1950.6,1950.5,1.02583]
[1742571975373,1.02587,1950.5,1950.4,1.70028]
[1742571975573,1.0258,1950.7,1950.6,1.0258]
[1742571975873,1.02583,1950.6,1950.5,1.02583]
[1742571976271,2.3867,1950.7,1950.6,1.02581]
[1742571976879,1.02581,1950.6,1950.5,1.69092]
[1742571977069,2.38671,1950.6,1950.5,1.69092]
[1742571979380,1.3609,1950.6,1950.5,1.69092]
[1742571979574,1.02581,1950.7,1950.6,1.02579]
[1742571979771,2.31941,1950.7,1950.6,1.02579]
[1742571980273,1.02581,1950.6,1950.5,4.89873]
[1742571980479,2.31941,1950.6,1950.5,4.89873]
[1742571981478,2.31941,1950.6,1950.5,3.8729]
[1742571981672,2.31941,1950.6,1950.5,4.89877]
[1742571982074,2.31941,1950.6,1950.5,3.8729]
[1742571982281,2.31941,1950.6,1950.5,0.6651]
[1742571982579,1.02592,1950.4,1950.3,1.02597]
[1742571982779,7.29624,1950.6,1950.2,1.026]
[1742571982780,1.02602,1950.3,1950.2,1.026]
[1742571983078,2.39602,1950.3,1950.2,1.026]
[1742571983581,1.02595,1950.4,1950.3,1.02592]
[1742571983880,2.39595,1950.4,1950.3,1.02592]
[1742571984079,1.02602,1950.3,1950.2,1.02599]
[1742571984271,2.33012,1950.3,1950.2,1.02599]
[1742571984471,2.33012,1950.3,1950.2,4.23379]
[1742571985072,2.33012,1950.3,1950.2,1.02599]
[1742571985273,1.02602,1950.2,1950.1,2.39483]
[1742571985476,3.438,1950.4,1950.1,1.3688]
[1742571985672,4.46396,1950.4,1950.3,1.02597]
[1742571985879,1.02596,1950.4,1950.3,1.02597]
[1742571986185,2.33001,1950.5,1950.4,1.02592]
[1742571986777,1.3041,1950.5,1950.4,1.02592]
[1742571986980,2.32997,1950.5,1950.4,1.02592]
[1742571987186,2.32997,1950.5,1950.4,4.23372]
[1742571987778,2.32997,1950.5,1950.4,1.02592]
[1742571988578,1.3041,1950.5,1950.4,4.23372]
[1742571988875,1.02571,1950.9,1950.8,1.02566]
[1742571990580,2.4118,1951.0,1950.9,1.02566]
[1742571990781,1.3862,1951.0,1950.9,2.34396]
[1742571991187,1.3862,1951.0,1950.9,5.55176]
[1742571991387,1.3862,1951.0,1950.9,6.90236]
[1742571992282,3.44567794,1951.2,1951.1,1.02555]
[1742571992690,1.02555,1951.1,1951.0,2.37615]
[1742571993388,1.02555,1951.1,1951.0,43.17615]
[1742571993592,2.39865,1951.1,1951.0,43.17615]
[1742571994287,1.3731,1951.1,1951.0,43.17615]
[1742571994486,1.38077794,1951.2,1951.1,1.02555]
[1742571994687,1.38077794,1951.2,1951.1,5.65515]
[1742571995992,0.00767794,1951.2,1951.1,5.65515]
[1742571996386,0.00767794,1951.2,1951.1,46.45515]
[1742571996985,0.00767794,1951.2,1950.9,4.5261]
[1742571997292,1.02571,1950.8,1950.7,1.02572]
[1742571997493,1.02571,1950.8,1950.7,2.37512]
[1742571997888,1.02581,1950.6,1950.5,1.02583]
[1742571998093,2.1352,1950.7,1950.6,1.02579]
[1742571998392,4.46363,1951.0,1950.9,1.02566]
[1742571998589,1.02566,1950.9,1950.8,1.02566]
[1742571998894,3.438,1951.0,1950.9,1.02566]
[1742571999191,1.3704,1951.1,1951.0,1.0256]
[1742571999389,0.6593,1951.1,1951.0,1.0256]
[1742571999891,0.00767794,1951.2,1951.1,1.02555]
[1742572000092,1.03317794,1951.2,1951.1,1.02555]
[1742572001005,2.36027794,1951.2,1951.1,2.41685]
[1742572002292,2.36027794,1951.2,1951.1,1.3913]
[1742572002493,2.36027794,1951.2,1951.1,2.41685]
[1742572002696,1.33477794,1951.2,1951.1,2.41685]
[1742572002992,13.0558,1951.8,1951.2,2.56373]
[1742572003295,1.02529,1951.6,1951.5,1.02531]
[1742572003796,2.32999,1951.6,1951.5,1.02531]
[1742572003995,2.32999,1951.6,1951.5,2.42701]
[1742572004293,1.3047,1951.6,1951.5,5.63481]
[1742572004490,1.3047,1951.6,1951.5,6.32811]
[1742572007096,2.32999,1951.6,1951.5,3.2078]
[1742572007398,2.32999,1951.6,1951.5,4.23314]
[1742572007598,2.32999,1951.6,1951.5,5.65244]
[1742572008200,1.3047,1951.6,1951.5,5.65244]
[1742572009394,0.00767794,1951.7,1951.6,1.02529]
[1742572009596,0.00767794,1951.7,1951.6,2.41839]
[1742572009988,0.00767794,1951.7,1951.6,43.21839]
[1742572010500,1.31477794,1951.7,1951.6,43.21839]
[1742572010703,2.34000794,1951.7,1951.6,43.21839]
[1742572011096,2.34000794,1951.7,1951.6,2.41839]
[1742572011298,1.31477794,1951.7,1951.6,2.41839]
[1742572011497,2.34000794,1951.7,1951.6,2.41839]
[1742572011695,1.31477794,1951.7,1951.6,43.21839]
[1742572012098,0.00767794,1951.7,1951.6,43.21839]
[1742572013007,0.72057794,1951.7,1951.6,2.41839]
[1742572013404,1.74580794,1951.7,1951.6,2.41839]
[1742572013605,1.02529,1951.6,1951.5,8.36501]
[1742572013801,2.44439,1951.6,1951.5,9.71221]
[1742572014007,2.44439,1951.6,1951.5,5.58031]
[1742572016409,2.44439,1951.6,1951.5,2.37251]
[1742572017306,1.4191,1951.6,1951.5,2.37251]
[1742572017809,1.03290794,1951.7,1951.6,1.02529]
[1742572018007,1.03290794,1951.7,1951.6,2.42349]
[1742572018309,0.00767794,1951.7,1951.6,2.42349]
[1742572018513,1.03290794,1951.7,1951.6,2.42349]
[1742572019708,0.00767794,1951.7,1951.6,2.42349]
[1742572020400,1.02489,1952.4,1952.3,1.02486]
[1742572020604,1.02489,1952.4,1952.0,2.56268]
[1742572020605,1.02496,1952.3,1952.2,1.02493]
[1742572020811,2.37849,1952.4,1952.3,1.02492]
[1742572021012,1.3536,1952.4,1952.3,1.02492]
[1742572021309,1.3536,1952.4,1952.3,4.23272]
[1742572021510,3.439,1952.9,1952.7,1.02466]
[1742572021714,1.02467,1952.8,1952.7,1.02466]
[1742572021910,1.02474,1952.7,1952.6,1.03240794]
[1742572022213,1.02474,1952.7,1952.6,0.00767794]
[1742572022409,1.02497,1952.2,1952.1,4.2328]
[1742572022711,1.02502,1952.1,1952.0,1.02505]
[1742572022902,1.02508,1952.0,1951.9,2.36719]
[1742572023213,1.3387,1952.1,1952.0,1.02508]
[1742572023415,1.3387,1952.1,1952.0,2.36718]
[1742572023706,1.3387,1952.1,1952.0,5.57498]
[1742572024616,1.02496,1952.3,1952.2,1.02493]
[1742572025010,3.08261,1952.4,1952.3,1.02492]
[1742572025211,1.67031,1952.4,1952.3,1.02492]
[1742572025413,1.73105,1952.5,1952.4,1.02487]
[1742572025613,1.02487,1952.4,1952.3,2.41288]
[1742572025815,1.73106,1952.5,1952.4,1.02487]
[1742572026014,1.73106,1952.5,1952.4,5.62067]
[1742572026211,1.02469,1952.8,1952.7,1.02467]
[1742572026416,5.77690794,1953.0,1952.8,1.02466]
[1742572026417,2.43713,1952.9,1952.8,1.02466]
[1742572026616,0.00767794,1953.0,1952.9,1.0246]
[1742572026922,1.03222794,1953.0,1952.9,1.0246]
[1742572027216,1.03222794,1953.0,1952.9,41.8246]
[1742572027416,1.03222794,1953.0,1952.9,43.2097]
[1742572027620,0.00767794,1953.0,1952.9,43.2097]
[1742572027820,1.03222794,1953.0,1952.9,43.2097]
[1742572028015,0.00767794,1953.0,1952.9,43.2097]
[1742572029315,1.03222794,1953.0,1952.9,43.2097]
[1742572029516,0.00767794,1953.0,1952.8,3.8536]
[1742572029718,0.00767794,1953.0,1952.9,1.0246]
[1742572029914,0.00767794,1953.0,1952.9,2.4097]
[1742572030111,0.00767794,1953.0,1952.9,43.2097]
[1742572031215,1.03222794,1953.0,1952.9,2.4097]
[1742572031617,1.0246,1952.9,1952.8,3.2078]
[1742572031917,1.02466,1952.8,1952.7,1.02471]
[1742572032219,0.00767794,1953.0,1952.6,7.17524]
[1742572032420,0.00767794,1953.0,1952.9,1.0246]
[1742572032620,0.00767794,1953.0,1952.9,3.1246]
[1742572032816,0.00767794,1953.0,1952.9,3.8384]
[1742572033017,3.2078,1953.7,1953.5,1.02429]
[1742572033324,1.02428,1953.6,1953.5,1.02428]
[1742572033525,0.6795,1953.6,1953.4,1.2898]
[1742572033825,1.02429,1953.5,1953.4,2.31413]
[1742572034226,1.71142794,1953.6,1953.5,1.02429]
[1742572034422,1.71142794,1953.6,1953.5,2.31409]
[1742572035422,0.68717794,1953.6,1953.5,2.31409]
[1742572036030,1.71141794,1953.6,1953.5,2.31409]
[1742572036225,0.68717794,1953.6,1953.3,45.65767794]
[1742572036430,1.02434,1953.4,1953.3,6.54924794]
[1742572036622,1.02434,1953.4,1953.3,5.52487794]
[1742572036823,1.02434,1953.4,1953.3,5.85486794]
[1742572037328,1.02434,1953.4,1953.3,0.00767794]
[1742572037528,4.23214,1953.4,1953.3,0.00767794]
[1742572037918,4.31968764,1953.4,1953.3,0.00767794]
[1742572038225,1.11188764,1953.4,1953.3,0.00767794]
[1742572038432,4.23214,1953.4,1953.3,0.00767794]
[1742572038628,7.67814,1953.4,1953.3,0.00767794]
[1742572038824,4.47034,1953.4,1953.3,0.00767794]
[1742572039018,4.7748,1953.5,1953.3,2.44823794]
[1742572039330,9.85567794,1953.6,1953.5,1.02429]
[1742572039533,12.19861794,1953.6,1953.5,1.02429]
[1742572039835,12.19861794,1953.6,1953.5,1.73459]
[1742572040128,1.32637794,1953.6,1953.5,1.73459]
[1742572040325,0.00767794,1953.6,1953.5,1.73459]
[1742572040931,1.03191794,1953.6,1953.5,5.18659]
[1742572043930,0.00767794,1953.6,1953.5,5.18659]
[1742572044827,1.03191794,1953.6,1953.5,5.18659]
[1742572045127,0.00767794,1953.6,1953.4,1.02429]
[1742572045333,1.02432,1953.5,1953.4,5.62559]
[1742572045729,1.02432,1953.5,1953.4,2.41784]
[1742572046334,2.37762,1953.5,1953.4,2.41784]
[1742572046635,2.37762,1953.5,1953.4,1.3935]
[1742572046832,2.37762,1953.5,1953.4,2.41784]
[1742572047424,1.02434,1953.4,1953.3,0.00767794]
[1742572047623,2.5612,1953.2,1952.9,40.8]
[1742572047837,1.02455,1953.0,1952.9,1.0246]
[1742572048231,1.0246,1952.9,1952.8,4.92922]
[1742572048435,1.0246,1952.9,1952.8,41.4968]
[1742572048635,1.0246,1952.9,1952.8,42.52146]
[1742572048937,1.0246,1952.9,1952.8,41.4968]
[1742572049230,1.02466,1952.8,1952.7,0.00767794]
[1742572049438,4.23246,1952.8,1952.7,0.00767794]
[1742572049634,1.02466,1952.8,1952.7,0.00767794]
[1742572049828,1.2934,1952.9,1952.8,1.02466]
[1742572050028,9.848,1953.1,1953.0,1.02455]
[1742572050224,9.22067,1953.4,1953.2,1.02445]
[1742572050225,1.02442,1953.3,1953.2,1.02445]
[1742572050429,1.02442,1953.3,1952.9,3.20781]
[1742572050430,2.31782,1953.3,1953.0,3.2078]
[1742572050726,7.06221,1953.3,1952.9,0.6463]
[1742572051029,1.02452,1953.1,1952.9,0.6463]
[1742572051226,1.2934,1953.2,1953.1,1.02448]
[1742572051227,1.02449,1953.2,1953.1,1.02448]
[1742572051426,1.02455,1953.0,1952.9,1.67085]
[1742572052431,1.02455,1953.0,1952.9,0.6463]
[1742572052636,1.0246,1952.9,1952.8,0.6949]
[1742572054332,1.02466,1952.8,1952.7,0.00767794]
[1742572054733,1.02466,1952.9,1952.8,1.02461]
[1742572054932,1.02459,1953.0,1952.9,1.0246]
[1742572055241,1.02459,1953.0,1952.9,1.6829]
[1742572055933,14.97514,1953.1,1953.0,1.02455]
[1742572056325,11.52114,1953.1,1953.0,1.02455]
[1742572056529,10.87254,1953.1,1953.0,1.02455]
[1742572056734,9.848,1953.1,1953.0,4.91235]
[1742572056928,10.8725,1953.1,1953.0,4.91235]
[1742572057129,1.02455,1953.0,1952.9,1.68287]
[1742572057735,1.02455,1953.0,1952.9,0.6583]
[1742572057924,1.02455,1953.0,1952.9,1.6829]
[1742572058531,1.02455,1953.0,1952.9,3.0372]
[1742572059231,1.72415,1953.0,1952.9,3.0372]
[1742572059427,1.02455,1953.0,1952.9,3.0372]
[1742572060129,1.02455,1953.0,1952.9,1.3543]
[1742572060336,1.02466,1952.8,1952.7,1.69977794]
[1742572060537,1.02464,1952.9,1952.8,1.02466]
[1742572060738,1.02464,1952.9,1952.8,2.42706]
[1742572061734,1.69645,1953.1,1953.0,1.02455]
[1742572062041,1.69645,1953.1,1952.8,1.4024]
[1742572062042,1.02455,1953.0,1952.9,2.42697]
[1742572064540,1.02455,1953.0,1952.9,1.4024]
[1742572064933,1.02466,1952.8,1952.7,1.69974794]
[1742572065131,1.02466,1952.8,1952.7,0.00767794]
[1742572066231,1.69436,1952.8,1952.7,0.00767794]
[1742572067044,5.13936,1952.8,1952.7,0.00767794]
[1742572067239,5.22693225,1952.8,1952.7,0.00767794]
[1742572068445,6.60603225,1952.8,1952.7,0.00767794]
[1742572069346,6.51846,1952.8,1952.7,0.00767794]
[1742572070639,6.51846,1952.8,1952.7,1.03238794]
[1742572071441,6.51846,1952.8,1952.7,0.67297794]
[1742572071842,6.51846,1952.8,1952.7,3.11158794]
[1742572072050,6.51846,1952.8,1952.7,2.08687794]
[1742572073041,6.51846,1952.8,1952.7,1.42157794]
[1742572075348,1.02448,1953.2,1953.1,1.02445]
[1742572075545,3.82023,1953.5,1953.2,1.02445]
[1742572075745,3.21547794,1953.6,1953.5,1.02429]
[1742572075746,0.00767794,1953.6,1953.5,1.02429]
[1742572075948,1.03191794,1953.6,1953.5,1.02429]
[1742572076156,0.00767794,1953.6,1953.5,45.03209]
[1742572076358,5.76764,1954.2,1953.6,2.5605]
[1742572076563,1.02413,1953.8,1953.7,2.42648]
[1742572077163,2.44671,1953.9,1953.8,1.02413]
[1742572077357,1.02407,1954.0,1953.9,1.02408]
[1742572077558,1.02407,1954.0,1953.8,2.42639]
[1742572077559,1.02408,1953.9,1953.8,2.42639]
[1742572078057,2.45433794,1954.0,1953.9,1.02408]
[1742572078252,2.45433794,1954.0,1953.9,2.42638]
[1742572078563,0.6949,1954.3,1953.9,4.6101]
[1742572078764,2.39582,1954.2,1954.1,1.02393]
[1742572078967,2.39586,1954.2,1954.1,1.3401]
[1742572079158,2.39586,1954.2,1954.1,2.36408]
[1742572079359,2.39586,1954.2,1954.1,1.3401]
[1742572080070,2.39586,1954.2,1954.1,2.36408]
[1742572080257,1.02392,1954.2,1954.1,1.3401]
[1742572081264,1.02392,1954.2,1954.1,2.36408]
[1742572081458,1.02392,1954.2,1954.1,1.3401]
[1742572081862,1.02413,1953.8,1953.7,0.00767794]
[1742572082069,1.02413,1953.8,1953.7,1.31787794]
[1742572082566,2.56057,1953.7,1953.4,3.2078]
[1742572082762,2.56057,1953.7,1953.4,1.3102]
[1742572082763,1.02429,1953.5,1953.4,1.3102]
[1742572082961,1.02439,1953.3,1953.2,3.8845]
[1742572083263,2.31547,1953.4,1953.3,1.02439]
[1742572083464,1.2911,1953.4,1953.3,1.02439]
[1742572083853,1.2911,1953.4,1953.2,3.89217794]
[1742572083854,1.02439,1953.3,1953.2,3.89217794]
[1742572084162,1.02439,1953.3,1953.2,0.68437794]
[1742572084363,1.02439,1953.3,1953.2,3.01902794]
[1742572084961,1.02439,1953.3,1953.2,1.31787794]
[1742572085261,4.47339,1953.3,1953.2,0.00767794]
[1742572085461,5.13659,1953.3,1953.2,0.00767794]
[1742572085860,1.0246,1952.9,1952.8,3.2078]
[1742572086064,1.0246,1952.9,1952.8,1.4134]
[1742572086356,1.02466,1952.8,1952.7,0.6594]
[1742572086553,1.02466,1952.8,1952.7,3.09751]
[1742572086760,1.02466,1952.8,1952.7,2.0728]
[1742572087264,1.03230794,1952.9,1952.8,1.02464]
[1742572087463,0.00767794,1952.9,1952.8,1.02464]
[1742572087661,0.00767794,1952.9,1952.8,4.23244]
[1742572089966,0.00767794,1952.9,1952.8,1.02464]
[1742572090164,0.00767794,1952.9,1952.8,4.23244]
[1742572090871,1.02444,1953.3,1953.2,1.02445]
[1742572091261,2.43996,1953.4,1953.3,1.02439]
[1742572091463,1.02436,1953.4,1953.3,1.02439]
[1742572092067,1.02445,1953.2,1953.1,9.09986]
[1742572092267,1.02445,1953.2,1953.1,5.65286]
[1742572092666,1.02437,1953.4,1953.3,1.02434]
[1742572092964,6.6608,1954.2,1953.3,9.1588]
[1742572093165,6.6608,1954.2,1954.0,1.02398]
[1742572093166,2.43959,1954.1,1954.0,1.02398]
[1742572093559,1.02403,1954.0,1953.9,43.24465]
[1742572094371,0.00767794,1954.1,1954.0,1.02403]
[1742572094568,0.00767794,1954.1,1954.0,2.42713]
[1742572096479,1.03165794,1954.1,1954.0,2.42713]
[1742572096775,1.03165794,1954.1,1954.0,1.4031]
[1742572097075,1.02407,1954.0,1953.9,1.02403]
[1742572097271,2.35957,1954.0,1953.9,2.31973]
[1742572097676,1.02408,1953.9,1953.8,5.20276794]
[1742572097878,2.35958,1953.9,1953.8,5.20276794]
[1742572098068,1.3355,1953.9,1953.8,5.20276794]
[1742572098266,1.02405,1954.0,1953.9,1.02408]
[1742572098477,1.02405,1954.0,1953.9,2.31978]
[1742572098673,1.02408,1953.9,1953.8,0.00767794]
[1742572099077,1.02429,1953.5,1953.4,1.02431]
[1742572099273,1.02429,1953.5,1953.3,1.9588]
[1742572099274,1.02428,1953.6,1953.5,1.02427]
[1742572099578,1.02429,1953.5,1953.4,2.32]
[1742572099879,1.0245,1953.1,1953.0,3.2078]
[1742572100175,1.0245,1953.1,1953.0,1.3463]
[1742572100375,1.0245,1953.1,1953.0,2.37081]
[1742572100672,1.02455,1953.0,1952.9,0.00767794]
[1742572103383,1.39,1953.1,1953.0,1.02455]
[1742572103584,1.02447,1953.2,1953.1,1.0245]
[1742572104483,12.85242,1953.3,1953.2,1.02445]
[1742572104682,1.02448,1953.2,1953.1,1.02447]
[1742572104882,1.2929,1953.3,1953.2,1.02445]
[1742572105176,2.56083,1953.5,1953.3,1.02438]
[1742572105177,1.02439,1953.4,1953.3,1.02438]
[1742572105377,2.31729,1953.4,1953.3,2.43408]
[1742572105685,1.02445,1953.2,1953.1,4.48947]
[1742572105884,1.02445,1953.2,1953.1,5.82347]
[1742572106071,1.02445,1953.2,1953.1,9.03127]
[1742572106279,1.0245,1953.1,1953.0,1.02452]
[1742572106477,2.448,1953.1,1953.0,1.02452]
[1742572106680,1.4235,1953.1,1953.0,1.02452]
[1742572106877,1.02449,1953.2,1953.1,1.02446]
[1742572108382,1.4235,1953.3,1953.2,1.02445]
[1742572108685,1.02436,1953.4,1953.3,1.02439]
[1742572109184,1.3287,1953.5,1953.4,1.02434]
[1742572109482,2.35294,1953.6,1953.5,1.02429]
[1742572110278,1.02429,1953.5,1953.4,2.41541]
[1742572110473,2.35299,1953.5,1953.4,2.41541]
[1742572111282,1.02427,1953.6,1953.5,1.02425]
[1742572111483,2.35292,1953.7,1953.6,1.02424]
[1742572112078,1.02429,1953.5,1953.4,2.41541]
[1742572112283,1.02429,1953.5,1953.4,1.02431]
[1742572112485,1.02434,1953.4,1953.3,7.70416]
[1742572112685,2.43434,1953.4,1953.3,7.70416]
[1742572114187,1.02445,1953.2,1953.1,2.39835]
[1742572114391,1.41,1953.4,1953.1,2.39835]
[1742572114392,1.02444,1953.3,1953.2,1.02442]
[1742572115185,1.02444,1953.3,1953.2,2.36172]
[1742572117389,1.02444,1953.3,1953.2,1.3373]
[1742572117585,1.0245,1953.1,1953.0,2.36182]
[1742572117789,1.02455,1953.0,1952.9,0.00767794]
[1742572117994,3.07355,1953.0,1952.9,0.00767794]
[1742572118293,3.78725,1953.0,1952.9,1.03227794]
[1742572118594,3.78725,1953.0,1952.9,0.00767794]
[1742572121496,6.99505,1953.0,1952.9,0.00767794]
[1742572121901,3.78725,1953.0,1952.9,0.00767794]
[1742572123896,6.99505,1953.0,1952.9,0.00767794]
[1742572124885,1.02476,1952.6,1952.5,40.8]
[1742572125086,1.02481,1952.5,1952.4,1.3658]
[1742572125401,2.41691,1952.5,1952.4,2.39067]
[1742572125695,2.41691,1952.5,1952.4,43.19067]
[1742572125897,2.41691,1952.5,1952.4,42.1658]
[1742572126804,2.41691,1952.5,1952.4,46.39847]
[1742572127189,1.3921,1952.5,1952.4,46.39847]
[1742572127391,1.03247794,1952.6,1952.5,1.02481]
[1742572127600,1.03247794,1952.6,1952.5,2.39571]
[1742572127899,1.03247794,1952.6,1952.5,3.07661]
[1742572128504,0.00767794,1952.6,1952.5,3.07661]
[1742572129801,1.03243794,1952.6,1952.5,3.07661]
[1742572130801,0.00767794,1952.6,1952.5,3.07661]
[1742572133100,1.02438,1953.4,1952.5,9.67586]
[1742572133305,2.31138,1953.4,1953.3,1.02434]
[1742572133802,1.02434,1953.5,1953.4,1.0243]
[1742572134007,3.84774,1953.5,1953.2,5.2212]
[1742572134198,1.02439,1953.3,1953.2,3.03785]
[1742572135606,2.31900794,1953.5,1953.4,1.02434]
[1742572136498,1.02439,1953.4,1953.3,1.02435]
[1742572136799,2.38909,1953.4,1953.3,1.02435]
[1742572137200,0.00767794,1953.5,1953.4,1.02434]
[1742572137405,0.00767794,1953.5,1953.4,2.44484]
[1742572138606,1.03196794,1953.5,1953.4,2.44484]
[1742572139400,0.00767794,1953.5,1953.4,2.44484]
[1742572140293,1.02412,1953.9,1953.5,2.56073]
[1742572140505,1.02405,1954.1,1954.0,1.024]
[1742572140706,1.3079,1954.1,1954.0,1.02403]
[1742572141092,1.3079,1954.1,1953.9,42.7558]
[1742572141093,1.3079,1954.1,1953.9,43.77983]
[1742572141292,1.02403,1954.0,1953.9,43.77983]
[1742572141508,1.02403,1954.0,1953.9,42.7558]
[1742572141909,1.02403,1954.0,1953.9,43.77988]
[1742572142599,1.02403,1954.0,1953.9,1.9558]
[1742572142796,1.02408,1953.9,1953.8,0.00767794]
[1742572143103,2.43018,1953.9,1953.8,0.00767794]
[1742572143710,2.43018,1953.9,1953.4,3.453]
[1742572143711,1.02429,1953.5,1953.4,3.453]
[1742572143905,2.56057,1953.7,1953.2,5.8673]
[1742572143906,1.02439,1953.4,1953.3,1.02437]
[1742572144101,1.4061,1953.4,1953.3,1.02437]
[1742572144506,2.43044,1953.4,1953.3,1.02437]
[1742572145108,1.71318,1953.6,1953.2,11.88900794]
[1742572145308,16.5158,1954.1,1953.7,1.02412]
[1742572145512,2.32908,1953.9,1953.8,1.02413]
[1742572145904,1.02407,1954.0,1953.9,1.02408]
[1742572146104,1.02408,1953.9,1953.8,4.23187]
[1742572147004,1.02407,1954.0,1953.9,1.02403]
[1742572147412,2.32907,1954.0,1953.9,1.02403]
[1742572148708,1.02408,1953.9,1953.8,4.2319]
[1742572149014,2.37958,1953.9,1953.8,4.2319]
[1742572149206,0.6599,1954.1,1953.9,1.02403]
[1742572149401,2.37957,1954.0,1953.9,1.02403]
[1742572150113,1.02408,1953.9,1953.8,4.23188]
[1742572150313,2.37958,1953.9,1953.8,4.23188]
[1742572151312,1.3555,1953.9,1953.8,4.23188]
[1742572151506,2.37958,1953.9,1953.8,4.23188]
[1742572152117,2.37958,1953.9,1953.8,4.23193]
[1742572152406,1.02413,1953.8,1953.7,5.79413]
[1742572152614,2.35343,1953.8,1953.7,5.79413]
[1742572153812,1.02412,1953.9,1953.8,1.02413]
[1742572154413,2.35336,1954.0,1953.9,1.02408]
[1742572154714,1.3293,1954.0,1953.9,1.02408]
[1742572154907,1.02399,1954.1,1954.0,1.02403]
[1742572155107,2.41349,1954.1,1954.0,1.02403]
[1742572155307,2.41349,1954.1,1954.0,4.23183]
[1742572155308,1.3895,1954.1,1954.0,4.23183]
[1742572155800,1.68344794,1954.2,1954.1,1.02398]
[1742572155801,0.00767794,1954.2,1954.1,1.02398]
[1742572156002,0.00767794,1954.2,1954.1,5.16518]
[1742572156407,0.00767794,1954.2,1954.1,45.96518]
[1742572157812,0.00767794,1954.2,1954.0,3.2078]
[1742572157813,1.02398,1954.1,1954.0,4.23178]
[1742572158007,1.02403,1954.0,1953.9,1.02404]
[1742572158209,2.34453,1954.0,1953.9,1.02404]
[1742572158608,2.34453,1954.0,1953.9,2.38844]
[1742572158810,2.34453,1954.0,1953.8,1.6733]
[1742572158811,1.02408,1953.9,1953.8,1.6733]
[1742572159006,2.34458,1953.9,1953.8,2.3885]
[1742572159307,2.34458,1953.9,1953.8,1.02413]
[1742572159511,1.02413,1953.8,1953.7,2.38855]
[1742572159712,1.02413,1953.8,1953.6,1.0242]
[1742572159713,1.02419,1953.7,1953.6,1.0242]
[1742572159911,1.02419,1953.7,1953.6,41.8242]
[1742572160215,1.02419,1953.7,1953.6,45.032]
[1742572160410,2.34469,1953.7,1953.6,45.032]
[1742572160612,2.34469,1953.7,1953.6,46.3964]
[1742572160912,1.3205,1953.7,1953.6,46.3964]
[1742572161117,2.34469,1953.7,1953.6,46.3964]
[1742572161413,1.02424,1953.6,1953.5,1.70234]
[1742572161612,1.02439,1953.4,1953.3,1.02438]
[1742572161812,2.56073,1953.5,1953.2,3.21547794]
[1742572161813,1.3647,1953.5,1953.2,3.21547794]
[1742572162021,1.02439,1953.4,1953.3,41.82436]
[1742572162323,1.02439,1953.3,1953.2,4.56387794]
[1742572162516,1.02439,1953.3,1953.2,3.21547794]
[1742572162711,1.02439,1953.3,1953.2,0.00767794]
[1742572165012,1.02466,1952.8,1952.7,1.02468]